bitfinex/quotes_ETHUSD_20250519
["timestamp","ask_amount","ask_price","bid_price","bid_amount"]
[1747623204537,4.16299065,2402.2,2401.7,8.55]
[1747623204734,4.16319733,2402.0,2401.9,0.55]
[1747623204938,4.16319733,2402.0,2401.9,9.324]
[1747623207050,4.16319733,2402.0,2401.9,9.322]
[1747623207756,4.16356895,2401.8,2401.7,0.55]
[1747623208051,4.16356895,2401.8,2401.7,9.322]
[1747623208471,4.16391569,2401.6,2401.5,8.772]
[1747623208753,5.074079,2401.6,2401.5,8.772]
[1747623208951,4.16406412,2401.5,2401.4,17.984]
[1747623209118,4.16406412,2401.5,2401.4,26.756]
[1747623209758,4.16406412,2401.5,2401.4,27.306]
[1747623209962,4.16406412,2401.5,2400.5,18.29005681]
[1747623209963,8.767,2401.5,2400.5,18.29005681]
[1747623210120,4.16562526,2400.6,2400.5,27.06205681]
[1747623210838,12.93262526,2400.6,2400.5,27.06205681]
[1747623211232,12.93262526,2400.6,2400.5,0.30905681]
[1747623211435,13.70662526,2400.6,2400.5,0.30905681]
[1747623211638,21.70662526,2400.6,2400.5,0.30905681]
[1747623211839,24.29383554,2400.6,2400.5,0.30905681]
[1747623212056,27.89651328,2400.6,2400.5,0.30905681]
[1747623212461,4.16701391,2399.8,2399.7,9.59196413]
[1747623212770,4.16701391,2399.8,2399.7,8.772]
[1747623212771,12.93301391,2399.8,2399.7,8.772]
[1747623213274,4.16788229,2399.3,2399.2,0.824]
[1747623213474,4.16788229,2399.3,2399.2,9.598]
[1747623214231,4.16788229,2399.3,2399.2,8.774]
[1747623214785,4.16579879,2400.5,2399.5,0.55]
[1747623214930,4.16614589,2400.3,2399.5,0.55]
[1747623215135,8.767,2400.2,2399.5,0.55]
[1747623215372,4.16702828,2399.8,2399.5,0.55]
[1747623215569,4.16736122,2399.6,2399.5,0.55]
[1747623215779,4.16720896,2399.7,2399.5,9.324]
[1747623215945,4.16692089,2399.9,2399.5,9.324]
[1747623216159,4.16626974,2400.3,2399.5,9.324]
[1747623216160,4.16631947,2400.2,2399.5,9.324]
[1747623216345,4.16689613,2399.9,2399.5,9.324]
[1747623216552,4.16672472,2400.0,2399.5,11.1388]
[1747623216750,4.1664967,2400.1,2399.5,15.30624243]
[1747623217187,4.1664967,2400.1,2399.7,0.55]
[1747623217684,4.1661865,2400.3,2399.7,0.55]
[1747623217685,4.16628309,2400.3,2399.7,4.71714829]
[1747623217890,4.16633584,2400.2,2399.8,1.35498483]
[1747623218093,8.767,2400.6,2400.0,0.55]
[1747623218094,4.16579879,2400.5,2400.0,0.55]
[1747623218390,4.16579879,2400.5,2400.2,0.55]
[1747623218691,4.16579879,2400.5,2400.4,0.55]
[1747623218858,4.16579879,2400.5,2400.3,0.779]
[1747623218859,4.16597233,2400.4,2400.3,1.329]
[1747623219067,4.16597233,2400.4,2400.3,0.55]
[1747623219464,9.50852875,2400.9,2400.4,0.55]
[1747623219771,4.16562526,2400.6,2400.5,1.329]
[1747623219975,4.16626042,2400.3,2400.2,0.55]
[1747623220286,4.16605909,2400.4,2400.2,9.326]
[1747623220451,13.67378632,2400.9,2400.2,9.326]
[1747623220452,4.16614589,2400.3,2400.2,9.326]
[1747623221981,4.16584062,2400.5,2400.2,9.326]
[1747623222182,9.50852875,2400.9,2400.2,10.3365]
[1747623222493,18.27452875,2400.9,2400.2,1.5605]
[1747623222688,4.16614589,2400.3,2400.2,0.55]
[1747623222991,4.16614589,2400.3,2400.2,9.326]
[1747623224898,4.16563875,2400.6,2400.2,9.326]
[1747623225079,4.16592883,2400.5,2400.2,9.326]
[1747623225395,4.1660717,2400.4,2400.2,9.326]
[1747623226289,4.16589087,2400.5,2400.2,9.326]
[1747623226491,4.16589087,2400.5,2400.2,10.3365]
[1747623227190,4.16604513,2400.4,2400.2,0.55]
[1747623227390,4.16631947,2400.2,2400.1,0.779]
[1747623227608,4.16631947,2400.2,2400.1,8.765]
[1747623228603,4.16619664,2400.3,2400.2,0.55]
[1747623229606,4.16666666,2400.0,2399.9,25.988]
[1747623229759,4.16658561,2400.1,2400.0,0.55]
[1747623233672,10.26752875,2400.9,2400.0,0.55]
[1747623233887,4.16589527,2400.5,2400.1,0.8231]
[1747623234064,4.16599451,2400.4,2400.1,0.8231]
[1747623234772,9.50852875,2400.9,2400.2,0.55]
[1747623235000,4.1655362,2400.7,2400.4,0.55]
[1747623235164,13.67368237,2400.9,2400.4,0.55]
[1747623235165,4.16536984,2400.8,2400.6,0.55]
[1747623235505,8.761,2401.1,2400.6,0.55]
[1747623235674,9.50852875,2401.3,2400.8,0.55]
[1747623235867,4.16509913,2401.0,2400.8,0.55]
[1747623236276,1.37049157,2401.4,2400.8,0.55]
[1747623236488,4.16505634,2401.0,2400.8,0.55]
[1747623236799,4.16505634,2401.0,2400.8,1.48731]
[1747623237194,4.16476782,2401.1,2400.8,1.48731]
[1747623237408,4.16510475,2400.9,2400.8,0.55]
[1747623237967,4.16510475,2400.9,2400.8,9.314]
[1747623239597,4.16510475,2400.9,2400.8,8.764]
[1747623239802,4.16510475,2400.9,2400.8,9.314]
[1747623240314,4.16666666,2400.0,2399.5,0.7732]
[1747623240477,12.92466666,2400.0,2399.2,10.39576413]
[1747623240981,12.92466666,2400.0,2399.2,9.58396413]
[1747623241485,12.92466666,2400.0,2399.2,10.13396413]
[1747623241867,12.92466666,2400.0,2399.2,9.58396413]
[1747623242511,4.16788229,2399.3,2399.2,9.314]
[1747623243368,4.16892483,2398.7,2398.6,18.7822]
[1747623243567,4.16892483,2398.7,2398.6,17.987]
[1747623244031,8.758,2399.4,2398.6,17.987]
[1747623244303,4.16792299,2399.3,2398.9,0.55]
[1747623244468,4.16718756,2399.7,2399.1,0.55]
[1747623244666,12.92518756,2399.7,2399.1,0.55]
[1747623245110,4.16805601,2399.2,2399.1,0.55]
[1747623246270,4.16875104,2398.8,2398.6,26.753]
[1747623246472,4.16892483,2398.7,2398.6,26.753]
[1747623246708,4.16892483,2398.7,2398.6,27.303]
[1747623246918,4.16892483,2398.7,2398.6,35.303]
[1747623247218,4.16892483,2398.7,2398.6,26.753]
[1747623247772,4.16892483,2398.7,2398.6,27.303]
[1747623249315,4.16927246,2398.5,2398.3,8.767]
[1747623249613,4.16944629,2398.4,2398.3,8.767]
[1747623251005,4.16944629,2398.4,2398.3,9.317]
[1747623251380,4.16944629,2398.4,2398.3,8.767]
[1747623252372,4.16996789,2398.1,2398.0,0.55]
[1747623252599,4.17014178,2398.0,2397.9,8.769]
[1747623252779,4.17031569,2397.9,2397.8,17.995]
[1747623253189,4.17031569,2397.9,2397.7,8.769]
[1747623253190,4.17048961,2397.8,2397.7,8.769]
[1747623253824,4.17031569,2397.9,2397.5,8.769]
[1747623253825,4.1708375,2397.6,2397.5,8.769]
[1747623255118,4.1708375,2397.6,2397.5,9.319]
[1747623256917,8.76,2398.1,2397.6,0.55]
[1747623257120,4.16931343,2398.5,2397.8,0.55]
[1747623257342,4.17007961,2398.1,2397.8,0.55]
[1747623257688,4.1702388,2398.0,2397.8,0.55]
[1747623258222,4.17031569,2397.9,2397.8,0.55]
[1747623259125,4.17031569,2397.9,2397.8,8.761]
[1747623259926,4.17122196,2397.4,2397.2,0.7664]
[1747623260216,4.17122196,2397.4,2397.3,8.761]
[1747623260417,4.17109208,2397.5,2397.3,8.761]
[1747623260807,4.17118545,2397.4,2397.3,8.761]
[1747623261013,4.1711002,2397.5,2397.4,0.55]
[1747623262637,8.761,2397.8,2397.4,9.53943459]
[1747623262808,4.17069956,2397.7,2397.4,9.53943459]
[1747623263227,4.17067074,2397.7,2397.4,1.53943459]
[1747623263447,0.7709,2398.2,2397.4,9.53943459]
[1747623263642,2.26037866,2400.5,2398.1,0.55]
[1747623263643,0.7795,2398.8,2398.1,0.55]
[1747623263809,4.16892483,2398.7,2398.3,0.55]
[1747623264007,4.16918387,2398.6,2398.3,8.55]
[1747623264537,4.1690018,2398.7,2398.3,8.55]
[1747623265107,4.16912356,2398.6,2398.3,8.55]
[1747623265311,4.16901287,2398.7,2398.3,8.55]
[1747623265508,4.16861067,2398.9,2398.5,0.55]
[1747623265944,0.8168,2399.7,2398.4,1.3581]
[1747623266155,0.8168,2399.7,2399.0,0.55]
[1747623266156,4.16783531,2399.4,2399.0,0.55]
[1747623266314,4.16783531,2399.4,2399.2,0.55]
[1747623266948,15.71794204,2400.4,2399.2,0.55]
[1747623267113,0.765,2400.2,2399.2,4.759705]
[1747623267309,4.1674969,2399.6,2399.2,8.55]
[1747623267708,4.16726176,2399.7,2399.2,8.55]
[1747623267954,4.16677637,2400.0,2399.5,0.55]
[1747623268115,8.759,2400.1,2399.6,8.762]
[1747623268453,1.5717942,2400.3,2399.8,0.55]
[1747623268665,0.8206,2400.5,2399.8,0.55]
[1747623268666,4.16639049,2400.2,2399.8,0.55]
[1747623268950,4.16656938,2400.1,2399.8,0.55]
[1747623269252,4.16642048,2400.2,2399.8,0.55]
[1747623269448,4.16649457,2400.1,2399.8,0.55]
[1747623270043,4.1666833,2400.0,2399.8,18.55]
[1747623270241,0.41651048,2400.8,2399.9,9.31]
[1747623270410,4.1660941,2400.4,2399.9,9.31]
[1747623270919,4.1660941,2400.4,2399.9,17.31]
[1747623271120,4.16666666,2400.0,2399.9,0.55]
[1747623271464,8.756,2400.3,2399.9,0.55]
[1747623271643,4.16666666,2400.0,2399.9,0.55]
[1747623272283,4.16684028,2399.9,2399.8,18.0]
[1747623272497,4.16684028,2399.9,2399.7,8.76]
[1747623272498,4.16736122,2399.6,2399.5,0.8249]
[1747623272669,4.16736122,2399.6,2399.5,8.76]
[1747623272990,4.58409734,2399.6,2399.5,8.76]
[1747623273342,4.16736122,2399.6,2399.5,8.76]
[1747623273846,9.5489,2399.8,2399.6,0.55]
[1747623273847,4.16701391,2399.8,2399.6,0.55]
[1747623274265,4.16718756,2399.7,2399.6,0.55]
[1747623275938,4.16707459,2399.8,2399.6,0.55]
[1747623276131,4.16695948,2399.9,2399.6,0.55]
[1747623276323,4.16667431,2400.0,2399.8,0.55]
[1747623276658,4.16684028,2399.9,2399.8,0.55]
[1747623278466,4.16736122,2399.6,2399.5,17.31]
[1747623278871,4.16706419,2399.8,2399.6,0.55]
[1747623279024,4.16647138,2400.2,2399.6,0.55]
[1747623279227,4.16692587,2399.9,2399.6,0.55]
[1747623279550,8.753,2400.1,2399.6,2.36106]
[1747623279551,4.16718756,2399.7,2399.6,2.36106]
[1747623279742,4.16718756,2399.7,2399.6,0.55]
[1747623280253,4.1675349,2399.5,2399.4,0.8006]
[1747623280553,4.1675349,2399.5,2399.4,18.1086]
[1747623281023,4.1675349,2399.5,2399.4,9.3506]
[1747623281351,4.1674525,2399.6,2399.4,18.1086]
[1747623281557,12.91845212,2400.2,2399.4,19.91946]
[1747623281751,4.16732473,2399.7,2399.4,19.91946]
[1747623281952,4.16747191,2399.6,2399.4,18.1086]
[1747623282128,4.16724377,2399.7,2399.4,18.1086]
[1747623282458,4.16736203,2399.6,2399.4,18.1086]
[1747623284273,4.16651864,2400.1,2399.4,18.1086]
[1747623284274,4.16700403,2399.9,2399.5,0.55]
[1747623284578,4.16701391,2399.8,2399.7,0.55]
[1747623284774,4.16701391,2399.8,2399.5,0.55]
[1747623285170,9.5449,2400.4,2399.5,12.71748049]
[1747623285375,4.16679947,2400.0,2399.5,12.71748049]
[1747623285671,4.16679947,2400.0,2399.7,0.55]
[1747623286069,4.16615901,2400.3,2399.9,0.55]
[1747623286238,4.16615901,2400.3,2399.8,0.7831]
[1747623286239,4.16631947,2400.2,2400.1,0.55]
[1747623286438,4.16615901,2400.3,2400.1,0.55]
[1747623286674,4.16631947,2400.2,2400.1,0.55]
[1747623287571,4.16666666,2400.0,2399.9,26.545]
[1747623287779,4.1664411,2400.2,2400.0,0.55]
[1747623287976,4.16620925,2400.3,2400.1,1.3331]
[1747623288749,4.16622436,2400.3,2400.1,1.3331]
[1747623289160,4.16579806,2400.6,2400.2,0.55]
[1747623289459,4.16583678,2400.5,2400.2,0.55]
[1747623290521,4.16579879,2400.5,2400.2,0.55]
[1747623290689,4.16573473,2400.6,2400.2,1.51524636]
[1747623291020,4.16583489,2400.5,2400.2,1.51524636]
[1747623292307,4.16581056,2400.5,2400.2,1.51524636]
[1747623293479,4.16614589,2400.3,2400.2,1.51524636]
[1747623293826,4.16631947,2400.2,2400.0,8.0]
[1747623293987,4.16649306,2400.1,2400.0,8.0]
[1747623294299,4.16649306,2400.1,2400.0,16.747]
[1747623294460,4.16649306,2400.1,2400.0,17.297]
[1747623294657,4.16649306,2400.1,2400.0,8.55]
[1747623294855,4.16649306,2400.1,2400.0,17.297]
[1747623295162,4.16631947,2400.2,2400.1,0.55]
[1747623295984,4.16666666,2400.0,2399.9,25.995]
[1747623296149,4.16666666,2400.0,2399.9,35.292]
[1747623296344,4.16666666,2400.0,2399.9,34.742]
[1747623296550,4.9999858,2400.0,2399.9,26.742]
[1747623301082,4.9999858,2400.0,2399.9,17.995]
[1747623301488,4.16666666,2400.0,2399.9,17.995]
[1747623302555,4.16788229,2399.3,2399.2,17.991]
[1747623302886,4.16805601,2399.2,2399.1,8.747]
[1747623303450,4.16805601,2399.2,2399.1,9.297]
[1747623306370,4.16788229,2399.3,2399.2,0.55]
[1747623306860,4.16760328,2399.5,2399.2,8.55]
[1747623307063,9.50852875,2400.0,2399.4,0.55]
[1747623307263,4.16718756,2399.7,2399.6,0.55]
[1747623307489,4.16718756,2399.7,2399.6,17.299]
[1747623307798,9.9938871,2400.4,2399.6,20.8283]
[1747623307988,4.16701009,2399.9,2399.7,0.8306]
[1747623308294,4.16701391,2399.8,2399.7,1.3806]
[1747623308695,5.41999467,2400.4,2399.8,0.55]
[1747623308895,4.16684028,2399.9,2399.8,0.55]
[1747623309086,4.16652393,2400.1,2399.8,3.51589]
[1747623309286,4.16684028,2399.9,2399.8,3.51589]
[1747623309494,4.16660477,2400.1,2399.8,3.51589]
[1747623310000,4.16684028,2399.9,2399.8,0.55]
[1747623310161,4.16684028,2399.9,2399.8,9.298]
[1747623310568,0.8114,2400.5,2399.8,9.298]
[1747623310790,4.16666909,2400.0,2399.8,9.298]
[1747623310988,4.16684028,2399.9,2399.8,9.298]
[1747623311603,4.16669543,2400.0,2399.8,11.0278]
[1747623311810,4.1665778,2400.1,2399.8,11.0278]
[1747623312103,4.16640884,2400.2,2400.1,0.55]
[1747623313002,4.16615365,2400.3,2400.1,0.55]
[1747623313503,4.16614589,2400.3,2400.1,0.55]
[1747623313712,4.16598154,2400.4,2400.1,0.55]
[1747623314091,4.99703972,2400.9,2400.1,0.55]
[1747623314291,4.16614589,2400.3,2400.2,1.48762]
[1747623314501,4.16614589,2400.3,2400.2,10.23562]
[1747623314702,4.16604298,2400.4,2400.2,10.23562]
[1747623315213,4.16527824,2400.8,2400.2,10.23562]
[1747623315422,4.16614589,2400.3,2400.2,9.298]
[1747623315581,4.1660286,2400.4,2400.2,9.298]
[1747623315780,4.16587379,2400.5,2400.2,9.298]
[1747623317018,4.16606558,2400.4,2400.2,9.298]
[1747623317193,4.16614589,2400.3,2400.2,0.55]
[1747623317388,4.16614589,2400.3,2400.2,9.297]
[1747623318119,4.16614589,2400.3,2400.2,9.285]
[1747623318714,4.16614589,2400.3,2400.2,11.11712082]
[1747623319231,4.16614589,2400.3,2400.2,0.55]
[1747623319451,4.16701391,2399.8,2399.6,0.30754846]
[1747623319585,4.16718756,2399.7,2399.6,0.30754846]
[1747623319786,4.16687556,2399.9,2399.7,8.0]
[1747623319986,4.16675788,2400.0,2399.7,10.50415485]
[1747623320294,4.16675788,2400.0,2399.9,1.3824]
[1747623320905,4.16657464,2400.1,2399.9,1.3824]
[1747623321087,19.00402875,2400.7,2400.0,8.55]
[1747623321283,4.16631947,2400.2,2400.1,9.284]
[1747623321619,4.16631947,2400.2,2400.1,11.15064]
[1747623322117,4.16622157,2400.3,2400.2,0.55]
[1747623322451,0.8067,2401.4,2400.4,0.55]
[1747623322591,1.2913871,2401.7,2400.9,0.55]
[1747623322785,4.16406805,2401.5,2401.1,0.55]
[1747623323032,4.16428332,2401.4,2401.1,1.89490948]
[1747623323318,4.16418875,2401.5,2401.1,1.89490948]
[1747623323520,4.1640538,2401.6,2401.2,0.7816]
[1747623323733,0.4846871,2401.7,2401.3,0.55]
[1747623323906,4.64849858,2401.7,2401.5,0.55]
[1747623324099,4.64849858,2401.7,2401.4,17.99]
[1747623324100,4.64840446,2401.7,2401.6,8.733]
[1747623324292,4.64840446,2401.7,2401.4,26.723]
[1747623324293,4.97076412,2401.5,2401.4,26.723]
[1747623325292,4.97076412,2401.5,2401.4,17.99]
[1747623325502,4.97076412,2401.5,2401.4,26.723]
[1747623325829,6.34907224,2401.5,2401.4,26.723]
[1747623327230,6.34907224,2401.5,2401.4,27.273]
[1747623327231,4.97076412,2401.5,2401.4,27.273]
[1747623327446,4.16406412,2401.5,2401.4,27.273]
[1747623328808,4.16406412,2401.5,2401.4,17.99]
[1747623329028,4.16406412,2401.5,2401.4,26.722]
[1747623329552,4.16406412,2401.5,2401.4,27.272]
[1747623331257,4.99686179,2401.5,2401.4,27.272]
[1747623331813,4.99686179,2401.5,2401.4,26.722]
[1747623332775,0.8078,2402.3,2401.5,0.55]
[1747623332915,4.16406412,2401.5,2401.4,18.54]
[1747623333119,4.16406412,2401.5,2401.4,27.271]
[1747623333743,4.16406412,2401.5,2400.7,4.16544571]
[1747623333744,5.07764231,2401.5,2401.3,8.731]
[1747623333914,5.07764231,2401.5,2401.1,8.731]
[1747623333915,4.16458437,2401.2,2401.1,8.731]
[1747623334631,4.16409676,2401.5,2401.2,0.55]
[1747623334820,0.8078,2401.7,2401.0,0.55]
[1747623334821,4.16431893,2401.4,2401.0,0.55]
[1747623335020,4.16431893,2401.4,2401.2,0.55]
[1747623335652,4.16407899,2401.5,2401.2,0.55]
[1747623335819,4.16423752,2401.4,2401.2,0.55]
[1747623336162,4.16441094,2401.3,2401.2,0.55]
[1747623336365,4.16441094,2401.3,2400.9,0.30818324]
[1747623336366,4.16493127,2401.0,2400.9,0.30818324]
[1747623336564,4.16493127,2401.0,2400.9,8.731]
[1747623336774,4.16493127,2401.0,2400.9,9.281]
[1747623338833,4.16493127,2401.0,2400.9,0.55]
[1747623339071,4.16493127,2401.0,2400.9,9.281]
[1747623340753,4.16493127,2401.0,2400.9,0.55]
[1747623340966,4.16527824,2400.8,2400.7,17.984]
[1747623341164,4.16527824,2400.8,2400.7,26.715]
[1747623341845,4.16527824,2400.8,2400.7,27.265]
[1747623344493,4.16527824,2400.8,2400.7,17.984]
[1747623344658,13.76811663,2400.8,2400.7,26.715]
[1747623345700,4.16527824,2400.8,2400.7,27.265]
[1747623347295,4.16527824,2400.8,2400.7,17.984]
[1747623347612,4.93187824,2400.8,2400.7,26.715]
[1747623347797,4.93187824,2400.8,2400.1,0.30754846]
[1747623347798,4.16591734,2400.5,2400.1,0.30754846]
[1747623348094,4.16631947,2400.2,2400.1,8.718]
[1747623348899,4.16631947,2400.2,2400.1,9.268]
[1747623349203,4.16666666,2400.0,2399.9,17.984]
[1747623349383,4.16666666,2400.0,2399.9,27.252]
[1747623350799,4.16592315,2400.5,2400.2,0.55]
[1747623351002,10.34122875,2401.0,2400.2,0.55]
[1747623351003,4.16606176,2400.4,2400.2,0.55]
[1747623351291,4.16614589,2400.3,2400.2,0.55]
[1747623351498,4.16614589,2400.3,2400.2,9.269]
[1747623352209,18.34122875,2401.0,2400.2,9.269]
[1747623352382,4.16614589,2400.3,2400.2,10.27811]
[1747623352983,4.16605239,2400.4,2400.2,10.27811]
[1747623353404,4.16584253,2400.5,2400.2,10.27811]
[1747623353600,4.16559447,2400.7,2400.2,10.27811]
[1747623353801,4.16599724,2400.4,2400.2,10.27811]
[1747623353989,0.8327,2401.0,2400.4,0.55]
[1747623354299,4.16595079,2400.5,2400.4,0.55]
[1747623355202,4.16564724,2400.6,2400.4,1.3237]
[1747623355793,4.16579879,2400.5,2400.4,1.3237]
[1747623356804,4.16579879,2400.5,2400.4,0.55]
[1747623357107,4.16579879,2400.5,2400.4,9.269]
[1747623362640,4.16579879,2400.5,2400.4,8.719]
[1747623363212,4.9989432,2400.5,2400.4,8.719]
[1747623364214,4.16579879,2400.5,2400.4,8.719]
[1747623365174,4.16649306,2400.1,2400.0,0.55]
[1747623365411,4.16649306,2400.1,2400.0,8.719]
[1747623365804,4.16649306,2400.1,2400.0,9.269]
[1747623367817,4.16640375,2400.2,2400.1,0.55]
[1747623368202,4.16603814,2400.4,2400.1,4.09881833]
[1747623368402,9.5378,2400.7,2400.1,4.09881833]
[1747623368627,4.16631947,2400.2,2400.1,4.09881833]
[1747623369512,4.16627214,2400.3,2400.1,4.09881833]
[1747623369712,4.16627214,2400.3,2400.2,1.28188183]
[1747623371320,4.16631947,2400.2,2400.1,9.3416]
[1747623372033,4.16666666,2400.0,2399.9,17.984]
[1747623372201,4.16666666,2400.0,2399.9,26.704]
[1747623374342,4.16649306,2400.1,2400.0,0.55]
[1747623374643,4.16649306,2400.1,2400.0,4.18740802]
[1747623375440,4.16649306,2400.1,2400.0,0.55]
[1747623378820,4.16647777,2400.2,2400.0,1.3079]
[1747623380468,4.16649306,2400.1,2400.0,1.3079]
[1747623381364,4.16649306,2400.1,2400.0,0.55]
[1747623381545,4.16649306,2400.1,2400.0,9.255]
[1747623382667,4.16649306,2400.1,2400.0,8.705]
[1747623382876,4.16666666,2400.0,2399.9,17.984]
[1747623383035,4.16701391,2399.8,2399.7,0.30754846]
[1747623383434,4.99361391,2399.8,2399.7,0.30754846]
[1747623383753,4.99361391,2399.8,2399.5,9.11490499]
[1747623383754,4.16736122,2399.6,2399.5,8.705]
[1747623385477,4.16788229,2399.3,2399.1,0.30754846]
[1747623385679,5.75771772,2399.2,2399.1,0.30754846]
[1747623385969,13.75771772,2399.2,2399.1,0.30754846]
[1747623386168,22.45971772,2399.2,2399.1,0.30754846]
[1747623386369,13.75771772,2399.2,2399.1,0.30754846]
[1747623386739,22.45871772,2399.2,2399.1,0.30754846]
[1747623386966,4.16944629,2398.4,2398.3,9.256]
[1747623387271,4.16928881,2398.5,2398.4,0.55]
[1747623387272,4.16932982,2398.5,2398.4,0.55]
[1747623388242,4.16837685,2399.1,2398.4,0.55]
[1747623388576,4.16885452,2398.8,2398.4,9.3237]
[1747623388770,4.16891785,2398.8,2398.4,9.3237]
[1747623388990,9.4581,2399.2,2398.4,0.7737]
[1747623389149,4.1684035,2399.0,2398.5,9.257]
[1747623389348,4.16909864,2398.6,2398.5,0.55]
[1747623389555,4.16909864,2398.6,2398.5,9.257]
[1747623389755,4.16909864,2398.6,2398.5,9.258]
[1747623393908,8.701,2398.9,2398.5,8.709]
[1747623394114,4.16909864,2398.6,2398.5,8.709]
[1747623394407,4.17014178,2398.0,2397.9,8.709]
[1747623395506,4.17014178,2398.0,2397.6,17.991]
[1747623395717,4.17153345,2397.2,2397.1,0.7509]
[1747623395885,4.17153345,2397.2,2397.1,9.4599]
[1747623396081,4.17153345,2397.2,2397.1,17.4599]
[1747623396478,4.17141558,2397.3,2397.2,8.0]
[1747623396929,4.17153345,2397.2,2397.1,8.709]
[1747623397779,4.17153345,2397.2,2396.9,17.998]
[1747623397780,4.17188151,2397.0,2396.9,17.998]
[1747623398026,4.17188151,2397.0,2396.9,26.709]
[1747623398308,4.17179489,2397.1,2396.9,26.709]
[1747623398512,4.17188151,2397.0,2396.9,26.709]
[1747623398923,4.17188151,2397.0,2396.9,27.259]
[1747623399074,4.93609661,2397.7,2397.0,0.55]
[1747623399280,4.17141409,2397.3,2397.0,0.55]
[1747623399481,4.17129476,2397.4,2397.0,8.59171668]
[1747623399783,4.17129476,2397.4,2397.0,8.55]
[1747623400095,4.1705942,2397.8,2397.2,0.55]
[1747623400412,4.17048812,2397.9,2397.4,0.55]
[1747623400617,4.17066355,2397.7,2397.6,0.55]
[1747623402858,4.17046907,2397.9,2397.6,0.55]
[1747623403011,4.17053599,2397.8,2397.6,0.55]
[1747623403210,23.1918636,2398.3,2397.6,0.55]
[1747623403211,4.17031781,2397.9,2397.6,0.55]
[1747623403428,4.17066355,2397.7,2397.6,1.3057]
[1747623403628,4.17060397,2397.8,2397.6,1.3057]
[1747623403827,4.17066355,2397.7,2397.6,1.3057]
[1747623404063,4.1705637,2397.8,2397.6,1.3057]
[1747623404359,4.17037708,2397.9,2397.6,1.3057]
[1747623404711,4.17037708,2397.9,2397.6,2.30747]
[1747623405648,10.32122875,2398.3,2397.6,10.30747]
[1747623405838,4.16979401,2398.2,2397.6,10.30747]
[1747623406147,4.16996789,2398.1,2397.6,10.30747]
[1747623406839,4.17016201,2398.0,2397.6,10.30747]
[1747623407040,4.17016201,2398.0,2397.7,2.31903245]
[1747623407556,4.1700487,2398.1,2397.7,2.31903245]
[1747623407758,0.7818,2398.6,2398.0,0.55]
[1747623407965,4.16966042,2398.3,2398.2,0.55]
[1747623408265,4.16953282,2398.4,2398.2,0.55]
[1747623409066,4.16937095,2398.5,2398.2,1.4763]
[1747623409230,4.16942259,2398.5,2398.2,1.4763]
[1747623409564,4.98769875,2398.9,2398.2,1.4763]
[1747623409565,4.1695575,2398.4,2398.2,1.4763]
[1747623409740,4.16944066,2398.5,2398.2,1.4763]
[1747623409926,4.16949183,2398.4,2398.2,1.4763]
[1747623410951,4.16875104,2398.8,2398.2,1.4763]
[1747623410952,4.16935816,2398.5,2398.2,9.4763]
[1747623411859,4.1693055,2398.5,2398.2,9.4763]
[1747623412570,4.16918395,2398.6,2398.4,0.55]
[1747623413067,4.16927246,2398.5,2398.4,0.55]
[1747623413235,4.16927155,2398.6,2398.4,0.55]
[1747623413564,4.16896152,2398.7,2398.4,0.55]
[1747623413766,0.8182,2399.1,2398.4,2.02316972]
[1747623413969,4.16858524,2398.9,2398.6,0.55]
[1747623414149,4.16858524,2398.9,2398.8,0.55]
[1747623414674,4.16943429,2398.5,2398.4,0.55]
[1747623414831,9.50852875,2399.2,2398.6,0.55]
[1747623415034,4.16892483,2398.7,2398.6,0.55]
[1747623415860,4.16926469,2398.6,2398.4,0.55]
[1747623416063,4.16926469,2398.6,2398.5,8.696]
[1747623416258,4.16909864,2398.6,2398.5,9.246]
[1747623417774,4.5860085,2398.6,2398.5,9.246]
[1747623419789,9.4581,2399.0,2398.5,9.246]
[1747623420192,4.16902836,2398.7,2398.5,9.246]
[1747623420498,4.16909864,2398.6,2398.5,9.246]
[1747623423290,4.16979401,2398.2,2398.1,0.7801]
[1747623423491,4.16970972,2398.3,2398.2,8.0]
[1747623424902,4.16908867,2398.7,2398.3,0.55]
[1747623425089,4.16913104,2398.6,2398.3,0.59169182]
[1747623425557,4.16858386,2398.9,2398.5,8.55]
[1747623425759,4.1684188,2399.0,2398.6,10.84953679]
[1747623425959,4.16892483,2398.7,2398.6,0.55]
[1747623426175,4.16927246,2398.5,2398.4,0.816]
[1747623426381,4.16927246,2398.5,2398.4,17.246]
[1747623427893,4.16927246,2398.5,2398.4,9.246]
[1747623428761,4.16927246,2398.5,2398.4,8.696]
[1747623429956,4.17014178,2398.0,2397.9,8.30754846]
[1747623430257,4.17014178,2398.0,2397.9,9.00354846]
[1747623430477,4.17014178,2398.0,2397.9,9.246]
[1747623431090,4.97449645,2398.8,2398.0,0.55]
[1747623431275,4.16928324,2398.5,2398.3,0.55]
[1747623431609,4.16874295,2398.9,2398.5,8.55]
[1747623431781,4.16874295,2398.9,2398.8,0.7939]
[1747623432376,4.16875104,2398.8,2398.6,1.3439]
[1747623432922,4.16892483,2398.7,2398.6,1.3439]
[1747623433324,4.16892483,2398.7,2398.6,0.55]
[1747623435531,4.16962014,2398.3,2398.2,0.763]
[1747623435733,4.16962014,2398.3,2398.2,9.458]
[1747623435906,4.16953688,2398.4,2398.3,0.55]
[1747623436107,4.16936282,2398.5,2398.3,8.55]
[1747623436307,4.16877245,2398.8,2398.3,8.55]
[1747623436607,4.16893955,2398.7,2398.5,0.55]
[1747623436801,8.679,2399.0,2398.5,0.55]
[1747623436802,12.8474191,2399.0,2398.5,0.55]
[1747623437129,12.8474191,2399.0,2398.4,0.55]
[1747623437130,4.16939766,2398.5,2398.4,0.55]